Cogmind - Beta 16.1 @@@ ROGUE MODE // 2026.03.13 @ 18:21:09 Player: parasect Result: Destroyed by B-86 Titan with Hardcell Cannon Performance ------------- Evolutions (5) 2500 Regions Visited (11) 2200 Robots Destroyed (297) 1485 Value Destroyed (9472) 9472 Prototype IDs (42) 840 Alien Tech Used (0) 0 Bonus (2784) 2784 TOTAL SCORE: 19281 Bonus ------- High Alert Combat Kills 1374 Follower Combat Kills 472 Met Warlord at Base 500 MAIN.C Attacked Warlord 500 Warlord Defense Kills 348 Friendly Fire -410 Cogmind --------- Core Integrity 0/1000 Matter 242/300 Energy 160/160 System Corruption 6% Temperature Cool (0) Movement Treading (250) Ox2 Location -4/Proximity Caves Parts ------- > --- POWER (2) -------- Backup-Antimatter Engine > --- PROPULSION (6) --- Treaded Myomer-Armored Exoskeleton > --- UTILITY (6) ------ Armored Scrap Engine Advanced Cooling System Huge Storage Unit > --- WEAPON (3) ------- Vortex Rail Directed Construct/G Kinetic Coil Construct/G > --- INVENTORY (25) --- Power Amplifier Advanced Heat Sink Advanced Energy Well (500) High-capacity Matter Pod (200) Experimental Core Analyzer Improved Transmission Jammer Advanced Reaction Control System Layered Light Armor Plating Makeshift Hacking Suite Makeshift Hacking Suite Makeshift Hacking Suite Tractor Beam Vortex Rail (40) Vortex Rail (40) Vortex Rail (40) HERF Cannon Heavy Phase Cannon Heavy Rocket Launcher Peak State ------------ > --- POWER ------------ Neutrino Core Backup-Antimatter Engine > --- PROPULSION ------- Treaded Myomer-Armored Exoskeleton > --- UTILITY ---------- Armored Scrap Engine Huge Storage Unit Advanced Sensor Array Advanced Signal Interpreter Hardened Medium Armor Plating > --- WEAPON ----------- Heavy Phase Cannon KE Penetrator Kinetic Coil Construct/G > --- INVENTORY -------- Light Fission Core Improved Medium Treads Improved Medium Treads Improved Medium Treads Improved Medium Treads Advanced Cooling System Advanced Energy Well High-capacity Matter Pod Improved Transmission Jammer Centrium Light Armor Plating Improved Hardlight Generator Shield Generator 01-MTF's Shockpuncher Advanced Plasma Rifle Flak Gun Hypervelocity Gauss Rifle KE Penetrator KE Penetrator KE Penetrator Heavy Flak Cannon Antimatter Cannon Heavy Rocket Launcher [Rating: 112] Favorites ----------- Power Constructs Engine Constructs Power Core Neutrino Core Reactor Reinforced Antimatter Reactor Propulsion Light Treads Treads Light Treads Leg Aluminum Leg Wheel Armored Huge Wheel Hover Unit Improved Airjet Flight Unit Improved VTOL Module Utility Huge Storage Unit Device Armored Scrap Engine Storage Huge Storage Unit Processor Improved Signal Interpreter Hackware Hacking Suite Protection Improved Medium Armor Plating Weapon Constructs Energy Gun Constructs Energy Cannon Cooled Particle Cannon Ballistic Gun Constructs Ballistic Cannon Mass Driver Launcher Heavy Rocket Launcher Special Weapon Remote Datajack Impact Weapon Flail Build | -11 -10 -10 -8 -7 -7 -7 -5 -5 -5 -5 -4 ------- Run | Yrd Mat Sub Mat Fac Sto Rec Fac Upp Upp War Pro Slots Evolved 10 | . . . 4 2 . . 4 . . . . Power 1 | . . . . . . . 1 . . . . Propulsion 4 | . . . 2 2 . . . . . . . Utility 4 | . . . 2 . . . 2 . . . . Weapon 1 | . . . . . . . 1 . . . . Parts Attached 159 | 3 6 11 34 11 24 8 49 5 . 6 2 Power 17 | . . 1 2 1 3 . 6 2 . 2 . Engine 8 | . . 1 2 . 3 . 1 1 . . . Core 8 | . . . . 1 . . 5 1 . 1 . Reactor 1 | . . . . . . . . . . 1 . Propulsion 28 | 2 . 2 12 2 8 2 . . . . . Treads 20 | 2 . 2 8 1 5 2 . . . . . Leg 3 | . . . 3 . . . . . . . . Wheel 2 | . . . . 1 1 . . . . . . Hover 2 | . . . . . 2 . . . . . . Flight 1 | . . . 1 . . . . . . . . Utility 62 | 1 4 4 8 6 3 4 29 1 . 1 1 Device 33 | 1 2 . 2 3 1 2 21 1 . . . Storage 5 | . 1 1 1 . . 1 1 . . . . Processor 4 | . . . . 1 . 1 2 . . . . Hackware 4 | . . . 1 1 . . 2 . . . . Protection 16 | . 1 3 4 1 2 . 3 . . 1 1 Artifact . | . . . . . . . . . . . . Weapon 52 | . 2 4 12 2 10 2 14 2 . 3 1 Energy Gun 9 | . . 2 1 . 1 1 1 . . 2 1 Energy Cannon 10 | . . 1 2 2 2 . 3 . . . . Ballistic Gun 18 | . 1 1 7 . 3 1 3 2 . . . Ballistic Cannon 5 | . . . 1 . 1 . 3 . . . . Launcher 7 | . 1 . 1 . 2 . 2 . . 1 . Special Weapon 2 | . . . . . 1 . 1 . . . . Impact Weapon 1 | . . . . . . . 1 . . . . Slashing Weapon . | . . . . . . . . . . . . Piercing Weapon . | . . . . . . . . . . . . Special Melee Weapon . | . . . . . . . . . . . . Unidentified Prototypes 18 | . . . 3 1 8 2 3 . . . 1 Corrupted Parts 1 | . . . . . . 1 . . . . . System Corruption 8 | . . . . . . 8 . . . . . Parts Lost 44 | . . 4 4 . 8 . 18 5 3 . 2 Power 11 | . . 1 2 . 1 . 5 1 1 . . Propulsion 10 | . . 2 1 . 4 . 1 1 . . 1 Utility 11 | . . 1 1 . 1 . 4 2 1 . 1 Weapon 12 | . . . . . 2 . 8 1 1 . . Highest Loss Streak 6 | . . 2 3 . 3 . 6 2 3 . 2 To Critical Strikes . | . . . . . . . . . . . . Average Backups 18 | 5 11 17 18 21 23 19 22 7 6 14 20 Power 1 | 1 1 . . . . 2 . . . . 1 Propulsion 3 | 3 2 3 2 5 5 3 4 . . . . Utility 7 | . 5 7 5 4 2 8 9 4 5 10 12 Weapon 6 | 1 1 5 10 10 13 5 7 3 1 3 6 Tool/Special . | . . . . . . . . . . . . Unused Backups 158 | . 1 5 14 5 3 71 35 4 . 4 16 Power 14 | . . . . . . 11 2 . . . 1 Propulsion 40 | . . . . 1 2 23 11 1 . 1 1 Utility 61 | . 1 4 6 2 . 18 17 . . 3 10 Weapon 41 | . . 1 8 2 1 18 4 3 . . 4 Tool/Special 2 | . . . . . . 1 1 . . . . Average Slot Usage (%) 69 | . 99 99 95 97 87 58 61 37 33 44 56 Engine 5 | . 14 14 6 2 4 5 2 1 . 8 . Core 2 | . . . . 4 1 1 7 1 2 . 1 Treads 14 | . 27 28 26 42 25 9 1 5 5 2 4 Leg 1 | . . . 8 . . . 1 . . . . Wheel 1 | . . . . 1 9 3 . . . 2 . Device 9 | . 13 12 9 9 7 7 12 10 8 5 11 Storage 7 | . 14 13 9 7 7 6 5 5 5 5 5 Processor 3 | . . . . 4 7 7 4 . . . . Protection 2 | . . 1 12 2 5 . 3 . . 1 4 Energy Gun 2 | . 14 12 1 . . . . . . 2 6 Energy Cannon 3 | . . 1 6 . 5 4 2 2 3 5 2 Ballistic Gun 7 | . 13 14 9 13 7 3 8 7 5 5 5 Ballistic Cannon 1 | . . . . . . 1 2 . . . . Peak Build Rating 112 | 7 8 11 29 45 57 74 112 70 60 97 101 Average Rating 53 | 6 7 9 24 34 49 54 99 60 52 73 95 On Entrance 41 | 6 7 8 11 29 45 56 74 53 59 53 93 Avg Prop Armor Cover (%) 16 | . . . 6 20 17 15 . . . . . Naked Turns . | . . . . . . . . . . . . Heaviest Build 155 | 15 52 58 106 110 117 111 128 110 110 154 155 Greatest Support 243 | 40 40 40 80 120 56 151 243 202 161 161 125 Greatest Overweight (x) 33 | . 1 1 3 3 4 33 . . . 1 2 Average Overweight (x) . | . . . . . 2 . . . . . 1 Largest Inventory Capacity 25 | 8 20 20 25 25 25 25 25 25 25 25 25 Average Capacity 23 | 8 16 19 20 25 25 24 25 25 25 25 25 Most Carried 25 | 6 17 20 20 25 25 25 25 12 12 25 24 Average Carried 18 | 4 11 17 18 21 24 19 23 7 6 18 21 Final Capacity 25 | 8 20 20 25 25 25 25 25 25 25 25 25 Final Carried 25 | 4 16 17 20 25 25 24 13 5 9 20 18 Scrap Engine Consumption 232 | . . . . . . 135 41 11 3 29 13 Constructs Created 11 | . . . . . . 4 1 2 1 1 2 Constructs Modified 81 | . . . . . . 42 24 1 . 3 11 Class Distribution -------------------- 49% | Construct 33% | Mutant 11% | Scavenger-Mutant Dominant Class ---------------- Mutant | -10/Materials Mutant | -10/Subcaves Scavenger-Mutant | -8/Materials Scavenger-Mutant | -7/Factory Mutant | -7/Storage Construct | -7/Recycling Construct | -5/Factory Construct | -5/Upper Caves Construct | -5/Upper Caves Commander-Construct | -5/Warlord Construct | -4/Proximity Caves Resources | -11 -10 -10 -8 -7 -7 -7 -5 -5 -5 -5 -4 ----------- Run | Yrd Mat Sub Mat Fac Sto Rec Fac Upp Upp War Pro Matter Collected 8077 | 260 238 315 767 301 1440 1122 2462 707 173 207 85 Remotely 109 | . . . . . 109 . . . . . . Salvage Created 15656 | 183 483 313 1413 316 1711 6900 2851 806 173 208 299 Parts 620 | 19 33 19 75 20 64 186 158 20 9 10 7 Haulers Intercepted 18 | . 2 . 3 1 5 4 3 . . . . Recyclers Shooed 46 | 1 1 . 2 1 6 33 2 . . . . Parts Field Recycled . | . . . . . . . . . . . . Retrieved Matter . | . . . . . . . . . . . . Parts Self-Destructed 37 | . . 13 . . . . . 15 7 . 2 Prevented 2 | . . . . . . . . . . . 2 Parts Restored . | . . . . . . . . . . . . Kills | -11 -10 -10 -8 -7 -7 -7 -5 -5 -5 -5 -4 ------- Run | Yrd Mat Sub Mat Fac Sto Rec Fac Upp Upp War Pro Combat Hostiles Destroyed 191 | . 13 7 25 9 23 32 54 11 6 3 8 Melee 1 | . . . . 1 . . . . . . . Guns 74 | . 10 5 8 5 8 6 21 4 5 . 2 Cannons 72 | . . 2 10 . 8 25 22 2 . 1 2 AOE 36 | . 3 . 6 3 7 . 11 . . 2 4 Classes Destroyed 20 | 2 6 1 4 1 . 3 2 1 . . . Worker 15 | . 1 . 3 . 1 1 9 . . . . Builder 17 | . 1 . 1 . 2 12 1 . . . . Tunneler 8 | 5 . . . . . 1 2 . . . . Hauler 18 | . 2 . 3 1 5 4 3 . . . . Recycler 63 | 1 1 . 4 1 7 45 4 . . . . Mechanic 2 | . . . . . . . 2 . . . . Operator 3 | . . . 2 . . . 1 . . . . Watcher 4 | . 1 . 1 . 1 . 1 . . . . Swarmer 53 | . 9 . 7 4 3 1 18 3 6 . 2 Saboteur 1 | . . . . . . . 1 . . . . Grunt 48 | . 4 . 8 2 14 6 9 2 . 1 2 Brawler 6 | . . . . . . 4 1 1 . . . Duelist 5 | . . . 1 . . 3 1 . . . . Protector 5 | . . . . . . 4 . . . 1 . Sentry 17 | . . . 8 . 1 4 2 1 . . 1 Demolisher 3 | . . . . . . 3 . . . . . Hunter 14 | . . . 1 . 1 5 2 2 . 1 2 Programmer 29 | . . . . 3 3 . 20 2 . . 1 Subdweller 9 | . . 7 . . . 2 . . . . . Decomposer 1 | . . . . . . . . . 1 . . Packrat 1 | . . . . . . . . 1 . . . Samaritan 2 | . . . . . . . . 2 . . . Thug 1 | . . . . . . . . . . 1 . Best Kill Streak 13 | 4 5 2 5 4 13 5 10 4 4 2 5 Combat Bots Only 8 | . 3 2 4 4 8 3 7 4 4 2 5 Max Kills in Single Turn 4 | 1 2 1 4 2 3 2 3 1 1 2 2 Gunslinging . | . . . . . . . . . . . . Exploded 4 | . 2 . 4 2 2 . 2 . . 2 2 Melee 1 | . . . . 1 . . . . . . . Uniques/NPCs Destroyed 1 | . . . . . 1 . . . . . . 01-MTF (-7/Storage) Combat | -11 -10 -10 -8 -7 -7 -7 -5 -5 -5 -5 -4 -------- Run | Yrd Mat Sub Mat Fac Sto Rec Fac Upp Upp War Pro Hostile Shots Fired 1546 | . 37 46 115 55 343 108 502 131 48 9 152 Missed 444 | . 9 10 28 21 111 44 127 37 10 2 45 Hits 1102 | . 28 36 87 34 232 64 375 94 38 7 107 Melee 16 | . . . 3 . . . 6 5 . 2 . Projectile 1086 | . 28 36 84 34 232 64 369 89 38 5 107 AOE 2 | . . . . . 1 1 . . . . . Critical Strikes 33 | . . 4 2 4 3 . 12 3 . . 5 Part Disruptions 3 | . . . . . 3 . . . . . . Damage Taken 18346 | . 276 819 1338 432 2806 384 7575 1818 576 125 2197 Core 1730 | . 67 153 155 15 255 65 503 129 128 21 239 Absorbed by Shields 1309 | . . . . 99 374 240 529 12 . 46 9 Redirected to Shielding 39 | . . . . . . . 39 . . . . Regen/Repaired (Parts) 4448 | . . . 213 . . 140 3006 324 . 503 262 Core Remaining (%) 58 | 100 . 12 71 . . 52 . . . . . Volleys Fired 1077 | 10 42 38 95 32 152 370 226 42 27 15 28 Largest 3 | 2 2 2 2 2 2 2 3 3 2 3 2 Hottest 206 | 70 70 80 129 80 60 118 170 126 100 206 122 Shots Fired 1638 | 20 82 67 178 58 252 432 369 82 31 30 37 Gun 829 | 20 80 62 105 54 123 87 172 60 25 18 23 Cannon 769 | . . 5 71 2 114 345 184 22 6 11 9 Launcher 30 | . 2 . 2 2 6 . 12 . . 1 5 Special 10 | . . . . . 9 . 1 . . . . Kinetic 772 | 10 40 30 102 56 123 86 230 60 25 10 . Thermal 815 | 10 40 37 76 2 123 346 126 22 6 8 19 Explosive 26 | . 2 . . . 6 . 12 . . 1 5 Electromagnetic 20 | . . . . . . . . . . 11 9 Entropic 4 | . . . . . . . . . . . 4 Robot Hit Streak 28 | 13 6 25 13 8 13 26 18 28 5 2 7 Robot Miss Streak 8 | 3 4 2 3 6 6 8 5 4 7 3 3 Penetration Max 2 | . . . . 1 1 1 1 1 . 2 . Secondary Targets 2 | . . 1 . . . . 1 . . . . Max Gunslinging Chain 1 | . . 1 . . . . 1 . . . . Shots Hit Robots 1035 | 14 47 56 116 37 156 304 190 63 17 13 22 Core Hits 576 | 7 25 11 55 21 62 130 178 49 9 12 17 Critical Kills 9 | . . . 1 . . 1 . 4 3 . . Critical Parts Destroyed 10 | . . . . . 2 . . 3 2 1 2 Critical Strikes 30 | . 2 1 1 . 2 3 1 9 5 3 3 Burn 6 | . 2 1 . . . 2 . . . 1 . Meltdown 2 | . . . 1 . . 1 . . . . . Destroy 20 | . . . . . 2 . . 9 5 2 2 Blast 1 | . . . . . . . 1 . . . . Corrupt 1 | . . . . . . . . . . . 1 Melee Attacks . | . . . . . . . . . . . . Impact . | . . . . . . . . . . . . Slashing . | . . . . . . . . . . . . Piercing . | . . . . . . . . . . . . Sneak Attacks . | . . . . . . . . . . . . Combat Hostiles . | . . . . . . . . . . . . Follow-up Attacks . | . . . . . . . . . . . . Damage Inflicted 31530 | 180 824 880 2799 1144 4941 7967 8950 1109 302 1179 1255 Guns 11996 | 180 593 744 1267 817 1790 1403 3420 776 243 365 398 Cannons 13076 | . . 136 1050 . 1485 6564 2956 333 59 278 215 Explosions 6169 | . 220 . 447 222 1641 . 2461 . . 536 642 Melee . | . . . . . . . . . . . . Ramming 275 | . 11 . 35 105 11 . 113 . . . . Kinetic 12019 | 91 252 325 1598 1039 1790 1268 4352 776 243 285 . Thermal 13559 | 89 341 555 1097 . 1499 6699 2384 333 59 187 316 Explosive 5102 | . 220 . 69 . 1641 . 2101 . . 429 642 Electromagnetic 493 | . . . . . . . . . . 278 215 Impact . | . . . . . . . . . . . . Slashing . | . . . . . . . . . . . . Piercing . | . . . . . . . . . . . . Entropic 82 | . . . . . . . . . . . 82 Highest Corruption 34 | . . . . 4 13 22 28 34 34 34 6 Average Corruption 14 | . . . . 2 8 13 9 31 34 23 5 Corruption Purged 8 | . . . . 1 3 . 4 . . . . Corruption Blocked . | . . . . . . . . . . . . Effects 546 | . . . . 7 5 320 77 67 42 3 25 Message Errors 123 | . . . . 2 . 79 15 17 6 . 4 Matter Fused 138 | . . . . 2 . 88 20 13 10 . 5 Heat Flow Errors 67 | . . . . 1 2 35 8 7 7 1 6 Energy Discharges 63 | . . . . . . 38 6 8 6 1 4 Parts Rejected 2 | . . . . . . . 1 1 . . . Parts Fused 4 | . . . . . 1 1 1 . 1 . . Data Loss (minor) 76 | . . . . 1 2 37 8 16 5 1 6 Data Loss (major) 21 | . . . . . . 14 6 . 1 . . Misfires 13 | . . . . . . 9 3 1 . . . Alerts 13 | . . . . 1 . 8 1 . 3 . . Misdirections 5 | . . . . . . . 4 . 1 . . Weapon Failures 21 | . . . . . . 11 4 4 2 . . Overload Shots . | . . . . . . . . . . . . Overflow Damage 849 | . . . 84 . 96 480 135 8 . . 46 Projectiles 637 | . . . 72 . 50 480 27 8 . . . Explosions 194 | . . . 1 . 46 . 101 . . . 46 Melee 18 | . . . 11 . . . 7 . . . . Knockbacks 14 | . . . 2 . . 3 9 . . . . Impact . | . . . . . . . . . . . . Kinetic 14 | . . . 2 . . 3 9 . . . . Secondary . | . . . . . . . . . . . . Self-Inflicted Damage 441 | . . . 45 20 174 . 167 . . . 35 Shots 11 | . . . 1 . 6 . 3 . . . 1 Rammed 16 | . 1 . 1 9 1 . 4 . . . . Targets Rammed 22 | . 2 . 4 10 1 . 5 . . . . Kicked 1 | . . . 1 . . . . . . . . Crushed 5 | . 1 . 2 1 . . 1 . . . . Highest Temperature 384 | 45 90 24 193 137 161 273 384 379 368 311 286 Average Temperature 70 | 23 33 16 49 53 40 80 78 78 105 118 111 Received Heat Transfer 3121 | . 42 135 558 21 630 84 978 162 . . 511 Effects 6 | . . . . . . 1 4 1 . . . Shutdowns 1 | . . . . . . . . 1 . . . Energy Bleed 2 | . . . . . . 1 1 . . . . Interference 3 | . . . . . . . 3 . . . . Siege Activations . | . . . . . . . . . . . . Martial Activations . | . . . . . . . . . . . . Shielding Activations . | . . . . . . . . . . . . Robots Disrupted . | . . . . . . . . . . . . Combat Hostiles . | . . . . . . . . . . . . Robots Corrupted . | . . . . . . . . . . . . Combat Hostiles . | . . . . . . . . . . . . Parts Fried 3 | . . . . . . . . 1 . . 2 Impact Corruptions 2 | . . . 1 . . . 1 . . . . Robots Melted 8 | . . . 1 . . 1 . 5 1 . . Combat Hostiles 7 | . . . 1 . . . . 5 1 . . Parts Melted 36 | 1 . 2 2 . 2 2 2 21 3 . 1 Heat Transferred 22444 | 259 1147 967 1924 . 2296 9525 1466 3500 650 303 407 Parts Sabotaged 6 | . . . . . . . 6 . . . . Parts Stolen . | . . . . . . . . . . . . Parts Stripped . | . . . . . . . . . . . . Power Chain Reactions 1 | . . . . . . . . . . 1 . Alert | -11 -10 -10 -8 -7 -7 -7 -5 -5 -5 -5 -4 ------- Run | Yrd Mat Sub Mat Fac Sto Rec Fac Upp Upp War Pro Maximum Alert Level 5 | . . . 1 . 2 3 5 . . . . Low Security (%) 43 | 100 100 . 78 100 22 37 11 . . . . Level 1 19 | . . . 21 . 71 13 20 . . . . Level 2 24 | . . . . . 5 41 25 . . . . Level 3 8 | . . . . . . 7 24 . . . . Level 4 2 | . . . . . . . 11 . . . . Level 5 1 | . . . . . . . 7 . . . . High Security . | . . . . . . . . . . . . Max Security . | . . . . . . . . . . . . Peak Influence 1936 | 20 144 . 372 94 479 780 1936 . . . . Initial 251 | . 6 . . 44 . 81 251 . . . . Average 335 | 5 33 . 107 27 251 348 666 . . . . Influence Increases 7652 | 30 412 . 904 301 1083 1148 2818 265 220 291 180 Destroy 0b10 Robot/C 3800 | . 260 . 500 180 540 520 1100 220 120 200 160 Destroy 0b10 Robot/NC 790 | 30 30 . 70 10 80 445 115 5 . 5 . Destroy Leader 686 | . 46 . 138 52 142 . 238 40 10 . 20 Allied During Kill 124 | . . . . . 53 . . . . 71 . Successful Hack 233 | . 33 . 39 44 14 6 97 . . . . Select Force Hacks 30 | . 30 . . . . . . . . . . Disable Machine 435 | . . . 60 . 105 60 210 . . . . Destroy Structure 754 | . 13 . 52 15 104 102 468 . . . . Advance Influence 50 | . . . . . . . 50 . . . . Partial Spotted 30 | . . . . . 15 . 15 . . . . Lose Combat Pursuer 720 | . . . 45 . 30 15 525 . 90 15 . Influence Decreases 7590 | 20 422 . 806 399 875 876 1414 1206 590 685 297 Entered New Map 2094 | . 4 . . 54 . 127 279 698 180 573 179 Time Decay 3920 | 20 332 . 456 345 595 449 745 458 380 42 98 Lost Part 400 | . . . 40 . 80 . 180 50 30 . 20 Lost Ally 340 | . . . 10 . 200 . 60 . . 70 . Purge Threat 836 | . 86 . 300 . . 300 150 . . . . Squads Dispatched 49 | . 1 . 2 7 13 . 26 . . . . Investigation 7 | . 1 . 1 3 . . 2 . . . . Extermination 17 | . . . . 4 4 . 9 . . . . Reinforcement 15 | . . . 1 . 9 . 5 . . . . Assault 7 | . . . . . . . 7 . . . . Garrison 3 | . . . . . . . 3 . . . . Intercept . | . . . . . . . . . . . . Searches Triggered . | . . . . . . . . . . . . Construction Impeded 4 | . . . . . 3 . 1 . . . . Haulers Reinforced 5 | . . . . . 5 . . . . . . Active Scanning Responses . | . . . . . . . . . . . . Cargo Convoy Interrupts 1 | . . . . . . . 1 . . . . Stealth | -11 -10 -10 -8 -7 -7 -7 -5 -5 -5 -5 -4 --------- Run | Yrd Mat Sub Mat Fac Sto Rec Fac Upp Upp War Pro Distress Signals 22 | . . . 5 1 4 3 6 . . 3 . Communications Jammed 1 | . . . . . . . 1 . . . . Distress Signals 1 | . . . . . . . 1 . . . . Times Spotted 362 | . 19 7 36 14 73 10 108 13 12 61 9 Peak Tracking Total 14 | . 3 2 5 4 8 4 11 4 5 14 6 Tactical Retreats 32 | . . . 2 . 6 1 18 . 4 1 . Traps | -11 -10 -10 -8 -7 -7 -7 -5 -5 -5 -5 -4 ------- Run | Yrd Mat Sub Mat Fac Sto Rec Fac Upp Upp War Pro Traps Triggered 12 | . 3 2 1 3 . . 3 . . . . Indirectly . | . . . . . . . . . . . . Trap Hack Attempts . | . . . . . . . . . . . . Triggered . | . . . . . . . . . . . . Disarmed . | . . . . . . . . . . . . Reprogrammed . | . . . . . . . . . . . . Reused 1 | . . . . . . . . . 1 . . Traps Extracted . | . . . . . . . . . . . . Installed 4 | . . 1 . . . . . . 3 . . Triggered 1 | . . . . . . . . . 1 . . Most Traps Carried 1 | . . 1 . . . . . . 1 . . Machines | -11 -10 -10 -8 -7 -7 -7 -5 -5 -5 -5 -4 ---------- Run | Yrd Mat Sub Mat Fac Sto Rec Fac Upp Upp War Pro Machines Disabled 29 | . . . 4 . 7 4 14 . . . . Max in Single Turn 5 | . . . 2 . 2 1 5 . . . . Garrison Access 2 | . . . 1 . . . 1 . . . . Machines Repaired . | . . . . . . . . . . . . Machines Dismantled . | . . . . . . . . . . . . Machines Sabotaged . | . . . . . . . . . . . . Overloaded Fab Kills . | . . . . . . . . . . . . Hacking | -11 -10 -10 -8 -7 -7 -7 -5 -5 -5 -5 -4 --------- Run | Yrd Mat Sub Mat Fac Sto Rec Fac Upp Upp War Pro Machines Accessed 66 | . 7 . 11 5 9 10 21 . 1 2 . Terminals 35 | . 6 . 8 2 7 5 7 . . . . Fabricators 4 | . . . . 1 . . 3 . . . . Repair Stations 4 | . . . 1 . . . 3 . . . . Recycling Units 7 | . 1 . . . 1 3 2 . . . . Scanalyzers 5 | . . . 1 1 . . 3 . . . . Garrison Access 6 | . . . 1 1 1 . 3 . . . . Total Hacks 202 | . 27 . 45 12 16 51 45 . 1 5 . Successful 111 | . 16 . 27 4 6 37 15 . 1 5 . Failed 89 | . 11 . 17 8 10 14 29 . . . . Catastrophic 20 | . 1 . . 3 5 3 8 . . . . Database Lockouts 2 | . . . 1 . . . 1 . . . . Manual 86 | . 22 . 33 . 5 18 8 . . . . Terminals 105 | . 26 . 38 5 13 12 11 . . . . Fabricators 6 | . . . . 1 . . 5 . . . . Repair Stations 18 | . . . 4 . . . 14 . . . . Recycling Units 18 | . 1 . . . 2 12 3 . . . . Scanalyzers 14 | . . . 1 4 . . 9 . . . . Garrison Access 8 | . . . 2 2 1 . 3 . . . . Terminal Hacks 61 | . 7 . 11 1 4 30 2 . 1 5 . Record 26 | . 1 . . . . 25 . . . . . Part Schematic 1 | . 1 . . . . . . . . . . Robot Analysis 4 | . 2 . 1 . 1 . . . . . . Prototype ID Bank 6 | . 1 . 1 . . . . . . 4 . Open Door 3 | . . . . . 1 . . . 1 1 . Branch Access Points 1 | . . . . 1 . . . . . . . Terminal Index 1 | . 1 . . . . . . . . . . Alert Level 4 | . . . 2 . 1 1 . . . . . Unreport Threat 6 | . 1 . 2 . . 2 1 . . . . Locate Traps 2 | . . . 1 . 1 . . . . . . Maintenance Status 1 | . . . 1 . . . . . . . . Patrol Status 1 | . . . 1 . . . . . . . . Recall Investigation 1 | . . . 1 . . . . . . . . Hauler Manifests 1 | . . . 1 . . . . . . . . Zone Layout 1 | . . . . . . . 1 . . . . Release Object 2 | . . . . . . 2 . . . . . Fabricator Hacks 2 | . . . . . . . 2 . . . . Network Status 1 | . . . . . . . 1 . . . . Load Schematic 1 | . . . . . . . 1 . . . . Repair Station Hacks 8 | . . . 4 . . . 4 . . . . Scan Component 5 | . . . 2 . . . 3 . . . . Repair 3 | . . . 2 . . . 1 . . . . Recycling Unit Hacks 1 | . . . . . 1 . . . . . . Retrieve Matter 1 | . . . . . 1 . . . . . . Scanalyzer 9 | . . . 1 3 . . 5 . . . . Insert Component 5 | . . . 1 1 . . 3 . . . . Analyze 2 | . . . . 1 . . 1 . . . . Retrieve Study 2 | . . . . 1 . . 1 . . . . Garrison Access Hacks 2 | . . . 1 . . . 1 . . . . Seal Access 2 | . . . 1 . . . 1 . . . . Unauthorized Hacks 28 | . 9 . 10 . 1 7 1 . . . . Terminals 21 | . 8 . 10 . 1 2 . . . . . Assimilate 2 | . . . 2 . . . . . . . . Botnet 7 | . 2 . 2 . 1 2 . . . . . Operators 1 | . 1 . . . . . . . . . . Skim 11 | . 5 . 6 . . . . . . . . Fabricators 1 | . . . . . . . 1 . . . . Liberate 1 | . . . . . . . 1 . . . . Repair Stations . | . . . . . . . . . . . . Recycling Units 6 | . 1 . . . . 5 . . . . . Reject 3 | . . . . . . 3 . . . . . Mask 2 | . . . . . . 2 . . . . . Tunnel 1 | . 1 . . . . . . . . . . Scanalyzers . | . . . . . . . . . . . . Garrison Access . | . . . . . . . . . . . . Data Cores Recovered 1 | . . . 1 . . . . . . . . Used . | . . . . . . . . . . . . Hacking Detections 53 | . 6 . 9 5 8 7 18 . . . . Full Trace Events 3 | . . . . 1 . 1 1 . . . . Feedback Events 1 | . . . . . . 1 . . . . . Corruption 1 | . . . . . . 1 . . . . . Feedback Blocked . | . . . . . . . . . . . . Robot Schematics Acquired . | . . . . . . . . . . . . Robots Built . | . . . . . . . . . . . . Authchips . | . . . . . . . . . . . . Time . | . . . . . . . . . . . . Total Robot Build Rating . | . . . . . . . . . . . . Part Schematics Acquired 2 | . 1 . . . . . 1 . . . . Parts Built . | . . . . . . . . . . . . Authchips . | . . . . . . . . . . . . Time . | . . . . . . . . . . . . Total Part Build Rating . | . . . . . . . . . . . . Part Studies Acquired 2 | . . . . 1 . . 1 . . . . Parts Repaired 3 | . . . 2 . . . 1 . . . . Time 106 | . . . 52 . . . 54 . . . . Parts Recycled . | . . . . . . . . . . . . Recycled Matter . | . . . . . . . . . . . . Retrieved Matter . | . . . . . . . . . . . . Retrieved Components . | . . . . . . . . . . . . Parts Scanalyzed 2 | . . . . 1 . . 1 . . . . Part Schematics Acquired 1 | . . . . . . . 1 . . . . Parts Damaged . | . . . . . . . . . . . . Bothacking | -11 -10 -10 -8 -7 -7 -7 -5 -5 -5 -5 -4 ------------ Run | Yrd Mat Sub Mat Fac Sto Rec Fac Upp Upp War Pro Used RIF Installer . | . . . . . . . . . . . . Robots Hacked 1 | . . . . . . . 1 . . . . Non-combat 1 | . . . . . . . 1 . . . . Combat . | . . . . . . . . . . . . Robot Hacks Applied 1 | . . . . . . . 1 . . . . find_chute 1 | . . . . . . . 1 . . . . Relay Couplers Released 3 | . . . . . . . 3 . . . . Programmers 3 | . . . . . . . 3 . . . . Fabnet Peak Effective % . | . . . . . . . . . . . . Robots Rewired 5 | . . . . . . . . . . 5 . Allies Hacked 2 | . . . . . 2 . . . . . . Hacks Repelled . | . . . . . . . . . . . . Allies | -11 -10 -10 -8 -7 -7 -7 -5 -5 -5 -5 -4 -------- Run | Yrd Mat Sub Mat Fac Sto Rec Fac Upp Upp War Pro Total Allies 19 | . . . 1 . 10 . 3 . . 5 . Largest Group 10 | . . . 1 . 10 . 3 . . 5 1 Highest-Rated Group 264 | . . . 10 . 173 . 87 . . 264 64 Highest-Rated Ally 64 | . . . 10 . 29 . 29 . . 64 64 Total Orders 6 | . . . . . 4 . . . . 2 . STAY 2 | . . . . . 1 . . . . 1 . ROAM 1 | . . . . . 1 . . . . . . FOLLOW 3 | . . . . . 2 . . . . 1 . Ally Attacks 107 | . . . . . 40 . 11 . . 56 . Total Damage 2617 | . . . . . 533 . 174 . . 1910 . Kills 17 | . . . . . 5 . 1 . . 11 . Allies Corrupted . | . . . . . . . . . . . . Allies Melted . | . . . . . . . . . . . . Intel | -11 -10 -10 -8 -7 -7 -7 -5 -5 -5 -5 -4 ------- Run | Yrd Mat Sub Mat Fac Sto Rec Fac Upp Upp War Pro Active Infowar (turns) 9462 | 20 1356 2132 491 857 451 838 3317 . . . . Sensors 4955 | . . . . 857 451 838 2809 . . . . Structural 931 | . . . . . . . 931 . . . . Traps 2 | . . . . . . . 2 . . . . Seismic 4100 | 20 1356 2132 491 . . . 101 . . . . Machine Analysis 115 | . . . . . . . 115 . . . . Jamming 473 | . . . . . . . 473 . . . . Robot Analysis Total 4 | . 2 . 1 . 1 . . . . . . Derelict Logs Recovered 4 | . . 2 . . . . . 1 1 . . Drone Launches . | . . . . . . . . . . . . Drone Recoveries . | . . . . . . . . . . . . Exploration | -11 -10 -10 -8 -7 -7 -7 -5 -5 -5 -5 -4 ------------- Run | Yrd Mat Sub Mat Fac Sto Rec Fac Upp Upp War Pro Turns Passed 24915 | 98 1397 2439 1765 1210 1897 7986 3891 1143 889 1178 1022 Spaces Moved 13987 | 37 494 939 659 606 786 5225 3447 445 411 592 346 Core 2 | . . . . . . 2 . . . . . Treads 5755 | 8 494 939 491 447 . 940 961 445 411 294 325 Legs 1907 | 29 . . 168 . . 479 1210 . . . 21 Wheels 3507 | . . . . 159 786 2285 . . . 277 . Hover 1297 | . . . . . . . 1276 . . 21 . Flight 1519 | . . . . . . 1519 . . . . . Fastest Speed 51 | 120 160 160 160 145 115 68 51 167 167 167 174 Average Speed 127 | 128 207 239 183 156 135 104 73 173 167 170 229 Slowest Speed 1700 | 160 240 240 330 160 160 1700 186 186 167 243 250 Overloaded Moves 9 | . . . . . . . 9 . . . . Propulsion Burnouts . | . . . . . . . . . . . . Robots Hopped 6 | . . . . . . 6 . . . . . Potential Cave-ins 5 | . . . . . . . 5 . . . . Cave-ins Triggered . | . . . . . . . . . . . . Exploration Rate (%) 62 | 4 93 51 71 14 89 100 82 62 59 83 43 Regions Visited 11 Branch Regions 7 Pre-discovered Areas 6 | . 2 . 2 . 1 . . . 1 . . Known Exits Taken 4 | . 1 . 1 1 . 1 . . . . . Unknown Exits Taken 7 | 1 . 1 . . 1 . 1 1 1 1 . Scrap Searched 12 | . . 10 . . . . . 1 . . 1 Spaces Dug 79 | . . . . . 6 11 62 . . . . Terrain Destroyed 648 | . 12 . 49 18 102 111 272 14 5 22 43 Melee . | . . . . . . . . . . . . Projectile 298 | . . . 4 . 42 111 113 12 5 1 10 AOE 343 | . 12 . 45 18 60 . 154 . . 21 33 Terrain Rammed . | . . . . . . . . . . . . Walls Destroyed . | . . . . . . . . . . . . Machines Disabled . | . . . . . . . . . . . . Actions | -11 -10 -10 -8 -7 -7 -7 -5 -5 -5 -5 -4 --------- Run | Yrd Mat Sub Mat Fac Sto Rec Fac Upp Upp War Pro Total 19583 | 67 782 1065 1042 801 1376 7381 4456 743 584 742 544 Wait 3452 | 16 219 16 154 94 333 1537 515 235 130 54 149 Move 13966 | 36 493 938 658 605 785 5214 3446 444 410 591 346 Hop 4 | . . . . . . 4 . . . . . Pick Up 328 | . 12 31 42 19 21 111 58 3 9 17 5 Fast Attach 52 | 1 2 1 6 1 8 3 22 4 . 4 . Attach 66 | . 1 6 6 3 16 5 21 3 . 3 2 Detach 47 | . 1 1 1 . 7 15 10 2 . 5 5 Swap 216 | 2 7 17 36 25 29 13 86 . . . 1 Drop 295 | 2 3 14 40 12 21 105 67 10 5 8 8 Fire 1077 | 10 42 38 95 32 152 370 226 42 27 15 28 Melee . | . . . . . . . . . . . . Ram 7 | . . . . 5 1 . 1 . . . . Kick 1 | . . . 1 . . . . . . . . Crush 14 | . 2 . 3 5 . . 4 . . . . Escape Stasis . | . . . . . . . . . . . . Rewire 52 | . . . . . 3 4 . . . 45 . Trap 4 | . . 1 . . . . . . 3 . . Miscellaneous 2 | . . 2 . . . . . . . . . Route ------- -11/Scrapyard -10/Materials (discovered 6 exits: [*Mat x3] / *Min x2 / *Sub) -10/Subcaves -8/Materials (discovered 3 exits: *Fac x3) -7/Factory (discovered 4 exits: *Fac / *Sto / Low x2) -7/Storage (discovered 2 exits: *Fac / *Rec) -7/Recycling -5/Factory -5/Upper Caves -5/Upper Caves (discovered 2 exits: [*Fac] / *War) -5/Warlord -4/Proximity Caves History --------- Turn | Location | Event 17 | -11/Scrapyard | Discovered new exit (range 3) 99 | -11/Scrapyard | Entered Materials 199 | -10/Materials | Discovered new exit (range 16) 364 | -10/Materials | Build established: Mutant 482 | -10/Materials | Discovered new exit (range 16) 655 | -10/Materials | Discovered new exit (range 9) 944 | -10/Materials | Discovered new exit (range 7) 994 | -10/Materials | Identified exit to Subcaves 1065 | -10/Materials | Identified exit to Mines 1065 | -10/Materials | Learned location of 1 exit from Materials 1126 | -10/Materials | Learned Storage stockpile data 1179 | -10/Materials | Loaded intel: 2 recycling unit locations 1252 | -10/Materials | Learned 4 Subcaves zone layouts 1311 | -10/Materials | Learned location of 3 exits from Materials 1407 | -10/Materials | Learned location of Recycling (-7) 1496 | -10/Materials | Entered Subcaves 1497 | -10/Subcaves | Approached by a straggling Scientist 1498 | -10/Subcaves | Ambushed by Subdwellers from Twisted Machinery 1498 | -10/Subcaves | Shifting Twisted Machinery released Sub. Laser 1561 | -10/Subcaves | Learned 2 Materials zone layouts 2173 | -10/Subcaves | Core integrity fell below 50% 2268 | -10/Subcaves | Discovered new exit (range 3) 2280 | -10/Subcaves | Shifting Twisted Machinery released Shrapnel Trap 2420 | -10/Subcaves | Shifting Twisted Machinery released Sub. Shrapnel Launcher 2452 | -10/Subcaves | Shifting Twisted Machinery released Shrapnel Trap 2501 | -10/Subcaves | Disturbed a concealed Subdweller 2911 | -10/Subcaves | A swath of the cavern ceiling suddenly collapsed 3010 | -10/Subcaves | A swath of the cavern ceiling suddenly collapsed 3782 | -10/Subcaves | Core integrity fell below 20% 3935 | -10/Subcaves | Entered Materials 3935 | -8/Materials | Evolved 4 slots: Propulsion x2, Utility x2 3936 | -8/Materials | Identified exit to Factory 4146 | -8/Materials | Lost 3 parts (1p1n1u) 4343 | -8/Materials | Central database locked down 4817 | -8/Materials | Build established: Scavenger-Mutant 5046 | -8/Materials | Learned Storage security intel 5109 | -8/Materials | Learned 8 Factory zone layouts 5163 | -8/Materials | Learned Storage stockpile data 5164 | -8/Materials | Repaired Lgt. Treads 5192 | -8/Materials | Repaired Lgt. Treads 5271 | -8/Materials | Learned Storage stockpile data 5291 | -8/Materials | Learned Storage stockpile data 5322 | -8/Materials | Learned location of 1 exit from Lower Caves 5361 | -8/Materials | Learned location of Zion (-7) 5472 | -8/Materials | Learned Factory security intel 5700 | -8/Materials | Entered Factory 5700 | -7/Factory | Evolved 2 slots: Propulsion x2 5701 | -7/Factory | Identified exit to Lower Caves 6416 | -7/Factory | Identified exit to Storage 6832 | -7/Factory | Discovered new exit (range 4) 6836 | -7/Factory | Identified exit to Factory 6910 | -7/Factory | Entered Storage 7373 | -7/Storage | Destroyed 8 combat bots 7381 | -7/Storage | Lost 3 parts (2n1u) 7590 | -7/Storage | Assisted by bots powering up and referring to "LRC-V3" 7661 | -7/Storage | Met 01-MTF 7735 | -7/Storage | Discovered exit to Factory (range 9) 8006 | -7/Storage | Build established: Mutant 8365 | -7/Storage | Found Prototype Launcher 8365 | -7/Storage | Identified Scatter Rocket Array 8563 | -7/Storage | Learned location of Armory (-3) 8619 | -7/Storage | Discovered new exit (range 12) 8735 | -7/Storage | System corruption reached 10% 8752 | -7/Storage | Destroyed 01-MTF 8759 | -7/Storage | Found Corrupted Prototype Energy Gun 8807 | -7/Storage | Entered Recycling 9347 | -7/Recycling | Discovered new exit (range 12) 9811 | -7/Recycling | Entered Scraplab 9841 | -7/Recycling | Found Prototype Device 9895 | -7/Recycling | Identified Scrap Engine 11051 | -7/Recycling | Build established: Construct 12162 | -7/Recycling | Identified exit to Factory 16793 | -7/Recycling | Entered Factory 16793 | -5/Factory | Evolved 4 slots: Power x1, Utility x2, Weapon x1 16894 | -5/Factory | Identified 01-MTF's Shockpuncher 17518 | -5/Factory | Central database locked down 17835 | -5/Factory | Cargo convoy interrupted 18197 | -5/Factory | Discovered new exit (range 6) 18528 | -5/Factory | Repaired Centrium Light Armor Plating 19193 | -5/Factory | First assault squad dispatched 19675 | -5/Factory | System corruption reached 10% 19678 | -5/Factory | Garrison activated, responded to threat 20313 | -5/Factory | Destroyed 7 combat bots 20327 | -5/Factory | Lost 6 parts (2p1u3w) 20684 | -5/Factory | Core integrity fell below 50% 20684 | -5/Factory | Entered Upper Caves 20686 | -5/Upper Caves | Attracted the attention of an 0b10 checkpoint 20712 | -5/Upper Caves | Lost 6 parts (2p1n3w) 20996 | -5/Upper Caves | Build established: Mutant 21155 | -5/Upper Caves | System corruption reached 30% 21457 | -5/Upper Caves | Build established: Construct 21466 | -5/Upper Caves | Encountered a Warlord checkpoint 21513 | -5/Upper Caves | Learned 8 Factory zone layouts 21786 | -5/Upper Caves | Spotted B-75 Beast 21803 | -5/Upper Caves | Discovered new exit (range 15) 21827 | -5/Upper Caves | Entered another Upper Caves area 21850 | -5/Upper Caves | Discovered new exit (range 6) 22365 | -5/Upper Caves | Lost 3 parts (1p1u1w) 22598 | -5/Upper Caves | Discovered new exit (range 11) 22615 | -5/Upper Caves | Build established: Mutant 22716 | -5/Upper Caves | Entered Warlord 22781 | -5/Warlord | System corruption cleaned by Quarantine Array 22966 | -5/Warlord | Build established: Construct 23026 | -5/Warlord | Found Prototype Device 23315 | -5/Warlord | Visited the Vortex Lab 23321 | -5/Warlord | Found Prototype Energy Gun 23324 | -5/Warlord | Found Prototype Energy Gun 23327 | -5/Warlord | Warlord's base attacked by MAIN.C 23330 | -5/Warlord | Found Prototype Energy Gun 23332 | -5/Warlord | Found Prototype Energy Gun 23413 | -5/Warlord | Met Warlord 23507 | -5/Warlord | Build established: Commander-Construct 23555 | -5/Warlord | Lost 3 allies 23677 | -5/Warlord | Warlord forces counterattacked 23782 | -5/Warlord | Spotted Striker 23783 | -5/Warlord | Spotted Executioner 23847 | -5/Warlord | Found Corrupted Prototype Processor 23848 | -5/Warlord | Spotted Executioner 23849 | -5/Warlord | Spotted B-86 Titan 23856 | -5/Warlord | Spotted Striker 23872 | -5/Warlord | Spotted Executioner 23875 | -5/Warlord | Discovered new exit (range 12) 23894 | -5/Warlord | Entered Proximity Caves 23894 | -4/Proximity Caves | Accompanied by 1 ally 23915 | -4/Proximity Caves | Lost 28 allies 24057 | -4/Proximity Caves | Core integrity fell below 20% 24426 | -4/Proximity Caves | Build established: Construct 24841 | -4/Proximity Caves | Spotted B-86 Titan 24861 | -4/Proximity Caves | Attracted the attention of an 0b10 checkpoint 24877 | -4/Proximity Caves | Identified Vortex Rail (x4) 24916 | -4/Proximity Caves | Destroyed by B-86 Titan with Hardcell Cannon Last Messages --------------- 24882_ Vortex penetrates G-67 Veteran. 24882_ Destroyed Adv. Heat Sink. 24885_ G-67 Veteran heat damages Unknown Reactor. 24885_ Penetrated by Slug. 24886_ G-67 Veteran heat short circuits Unknown Energy Gun. 24886_ B-86 Titan activates siege mode. 24886_ The unstable cave ceiling collapses. 24887_ Vortex penetrates G-67 Veteran. 24887_ G-67 Veteran destroyed. 24887_ Vortex penetrates Wall. 24890_ The unstable cave ceiling collapses. 24891_ KE Penetrator fries itself beyond repair. 24891_ Acquired 22 matter. 24892_ Slug penetrates Earth. 24893_ The unstable cave ceiling collapses. 24895_ Penetrated by Slug. 24898_ Critical hit (Meltdown: +340). 24913_ Slug penetrates Wall. Map ----- +----------------------------------------------------+ | ?????????????????????????????????????????????????? | | ???????#######???????????????????????????????????? | | ???????# #??????????????????????????????????? | | ???????# #??????????????????????????????????? | | ???????# #??????????????????????????????????? | | ???????? #??????????????????????????????????? | | ????????? ###????????????????????????????????? | | ?????????? ##????#####???######?????????????? | | ???????????#" #???## ##?# ##????????????? | | ????????#### #??## ## #????????????? | | ????????# ##### % #????????????? | | ????????# # % "" #?????????????? | | ????????# # BB ; % ##?????????????? | | ????????# ## BB##"; # % #######???????? | | ????????# ####### ;?# ??????? | | ????????# #?????# #?# $ ??????? | | ????????# #?????# ;## ####"#????????? | | ????????# #????## % ;#????????????? | | ????????# #?#### # % ####??????????? | | ????????# #?# ##?????????? | | ????????# #?# #?????????? | | ????????# #?# ##?????????? | | ????????# #?# #??????????? | | ????????# #?## #??????????? | | ????????# #??## ## % #??????????? | | ????????# #???###?## @;; # ##??????????? | | ????????# #????????# ;; # ##???????????? | | ????????# #????????# ;; ###????????????? | | ????????# ##???????## ;#?????????????? | | ????????# #????????##;# #;####?????????????? | | ????????## #?????????#### ### #???????????????? | | ?????????# ##???????????# #?? #???????????????? | | ?????????# ##??????????? ???#???????????????? | | ????????## #??????????? ??????????????????? | | ????????# ##?????????? ??????????????????? | | ????????## #?????????? ?????????????????? | | ?????????## #????? ? ?????????????????? | | ????###?### ### ????????????????? | | ????# ### ????????????????? | | ????# ## #???? ???????????????????? | | ????# ##???? #???? ?????????????????????? | | ??### ### ##????????????????????????????????? | | ?## #### ##???????????????????????????????? | | ## #???????????????????????????????? | | # ???????????????????????????? | | # " " ???????????????????????????? | | # "" """ #???????????????????????????? | | # # "" """" #???????????????????????????? | | # # " "" ##???????????????????????????? | | # #????????????????????????????? | +----------------------------------------------------+ Best States ------------- Heat Dissipation 71 Coolant Potential 50 Energy Generation 35 Energy Capacity 484 Matter Stores 300 Matter Capacity 300 Sight Range 16 Robot Scan Range 16 Terrain Scan Density 10 Jamming Range 14 Armor Coverage 800 Propulsion Shielding 66 Evasion (%) 60 Recoil Reduction 6 Particle Charging 20 Offensive Hacking 10 Authchip Count 4 Item Schematics ----------------- Huge Storage Unit | -10/Materials | Hacked Centrium Light Armor Plating | -5/Factory | Scanalyzed Robot Schematics ------------------ None Fabricated ------------ Nothing Repaired ---------- Lgt. Treads | 23% | -8/Materials Lgt. Treads | 24% | -8/Materials Centrium Light Armor Plating | 17% | -5/Factory Studied --------- Gauss Rifle | -7/Factory | Hacked Hvy. Rocket Launcher | -5/Factory | Hacked Alien Tech Used ----------------- None Achievements -------------- Not So Scrappy Scrappetite Survival Of The Most Covered Challenges ------------ None Game ------ Seed SupersonicWeldingMindspike Manual? 0 Play Time 04:42:57 Cumulative 177.1 hours Start 2026.03.12 @ 23:56:05 End 2026.03.13 @ 18:21:09 Sessions 5 Manual Loads 0 Difficulty Rogue Special Mode None Game No. 116 Rogue 115 Adventurer 0 Explorer 1 Win Type - Total 15 Types 11/0/2/1/0/0/0/1/0/0 Lore% 58 Gallery% 58 Achievement% 55 Wizard Run 0 Options --------- Layout 2 ASCII 0 Keyboard 1 Movement Numpad Keybinds 0 Fullscreen 2 Font 24/Terminus Map View 50x44 Zoom Use 0% Tactical HUD 1 Map Filters NONE Filters NONE Steam 1 RUN: 1e6e0459-174a-4f5d-ae56-28742d37f31e